bitfinex/quotes_SOLUSD_20260115
["timestamp","ask_amount","ask_price","bid_price","bid_amount"]
[1768461225537,0.72144003,144.21,144.18,0.69658112]
[1768461228547,0.72144003,144.21,144.18,7.63225083]
[1768461228734,0.72144003,144.21,144.19,0.69658112]
[1768461229046,0.72144003,144.24,144.21,0.69658112]
[1768461229348,0.82144003,144.25,144.21,0.69658112]
[1768461229643,7.75385875,144.25,144.21,0.69658112]
[1768461230146,0.72144003,144.24,144.21,0.69658112]
[1768461237858,0.69281328,144.23,144.19,6.93493096]
[1768461238155,0.69281328,144.23,144.18,7.60615154]
[1768461238935,0.69281328,144.23,144.19,0.67052966]
[1768461244070,0.69281328,144.21,144.18,7.60615154]
[1768461245467,0.69281328,144.21,144.19,0.67052966]
[1768461246348,3.2739837,144.22,144.19,0.67052966]
[1768461251874,0.69281328,144.21,144.18,6.93562188]
[1768461252168,0.69281328,144.21,144.17,7.60661505]
[1768461252773,0.69281328,144.21,144.18,0.67052966]
[1768461258680,0.69281328,144.21,144.17,0.67052966]
[1768461260973,3.23458484,144.2,144.17,0.67052966]
[1768461267593,0.65341442,144.2,144.17,0.67052966]
[1768461270294,0.65341442,144.2,144.17,7.60672331]
[1768461272598,0.65341442,144.2,144.17,6.93619365]
[1768461272770,0.66769693,144.22,144.18,0.68211183]
[1768461274392,0.66769693,144.21,144.18,0.68211183]
[1768461277098,0.66769693,144.21,144.16,7.61884878]
[1768461277281,0.66769693,144.2,144.17,0.68211183]
[1768461283907,0.66769693,144.22,144.19,0.68211183]
[1768461285012,0.66769693,144.22,144.18,0.68211183]
[1768461286998,0.66769693,144.22,144.18,3.26328225]
[1768461289513,0.66769693,144.22,144.19,0.68211183]
[1768461290101,0.66769693,144.22,144.18,3.26328225]
[1768461291801,0.65794307,144.21,144.18,0.68211183]
[1768461292311,0.65794307,144.21,144.16,0.67715453]
[1768461292494,0.65794307,144.21,144.16,7.61372335]
[1768461292696,0.65794307,144.21,144.17,2.58117042]
[1768461292895,0.65794307,144.21,144.18,0.67715453]
[1768461294020,0.65794307,144.21,144.16,0.67715453]
[1768461294021,0.65794307,144.2,144.16,0.67715453]
[1768461294196,0.65794307,144.2,144.16,3.25832495]
[1768461295700,0.65794307,144.2,144.16,0.67715453]
[1768461296606,0.65794307,144.2,144.16,3.25832495]
[1768461297227,0.65794307,144.2,144.16,0.67715453]
[1768461297429,0.65794307,144.19,144.15,0.67715453]
[1768461297731,0.65794307,144.19,144.16,0.67715453]
[1768461298731,0.65794307,144.19,144.16,4.71276434]
[1768461298914,0.65794307,144.19,144.16,0.67715453]
[1768461299228,0.65794307,144.19,144.15,0.67715453]
[1768461299427,0.65794307,144.19,144.16,0.67715453]
[1768461300827,0.65794307,144.18,144.14,0.67715453]
[1768461302431,0.65794307,144.18,144.14,4.71276434]
[1768461303429,0.65794307,144.18,144.14,0.67715453]
[1768461303732,0.65794307,144.18,144.14,4.71276434]
[1768461305714,0.65794307,144.18,144.14,0.67715453]
[1768461305920,0.65794307,144.18,144.14,4.71276434]
[1768461306632,0.65794307,144.18,144.15,0.67715453]
[1768461306829,0.65794307,144.18,144.15,4.71276434]
[1768461307222,0.65794307,144.18,144.15,0.67715453]
[1768461307519,0.75794307,144.25,144.16,0.67715453]
[1768461307731,0.75794307,144.26,144.23,4.03560981]
[1768461307919,0.75794307,144.26,144.17,12.64]
[1768461307920,0.75794307,144.28,144.25,0.67715453]
[1768461308107,0.75794307,144.28,144.23,11.39512324]
[1768461308437,0.75794307,144.28,144.22,0.67715453]
[1768461308619,0.65794307,144.27,144.22,7.61071801]
[1768461308820,0.65794307,144.27,144.23,4.03560981]
[1768461309637,0.65794307,144.27,144.24,0.67715453]
[1768461309814,0.65794307,144.27,144.25,4.03560981]
[1768461310519,0.75794307,144.28,144.25,4.03560981]
[1768461311537,0.1,144.28,144.26,0.67715453]
[1768461311741,0.1,144.28,144.27,4.03560981]
[1768461312330,0.1,144.28,144.25,7.60952388]
[1768461312528,0.1,144.28,144.27,4.03560981]
[1768461312730,0.75794307,144.29,144.27,4.03560981]
[1768461313643,0.75794307,144.29,144.26,6.93190184]
[1768461313834,0.75794307,144.29,144.27,4.03560981]
[1768461314039,0.75794307,144.29,144.26,4.03560981]
[1768461314540,0.75794307,144.29,144.27,4.03560981]
[1768461315232,0.75794307,144.29,144.28,4.03560981]
[1768461315744,0.1,144.3,144.28,4.03560981]
[1768461316044,0.1,144.31,144.3,4.03560981]
[1768461317831,0.75794307,144.31,144.3,4.03560981]
[1768461318227,0.75794307,144.31,144.29,4.03560981]
[1768461319844,0.75794307,144.31,144.26,7.6089482]
[1768461320150,0.1705372,144.3,144.25,0.67715453]
[1768461320447,0.1705372,144.3,144.27,4.03560981]
[1768461320659,0.65306901,144.29,144.25,4.03560981]
[1768461323453,0.65306901,144.29,144.24,11.67637999]
[1768461324655,0.65306901,144.29,144.25,4.03560981]
[1768461326850,0.65306901,144.29,144.25,4.70993334]
[1768461330247,0.17536252,144.28,144.25,0.67432353]
[1768461334850,0.17536252,144.28,144.25,4.70993334]
[1768461336256,0.69310598,144.29,144.26,4.70993334]
[1768461336452,0.69310598,144.29,144.26,0.67432353]
[1768461336664,0.69310598,144.29,144.26,4.70993334]
[1768461343869,0.69310598,144.29,144.27,4.03560981]
[1768461344462,7.62315111,144.3,144.27,4.70993334]
[1768461344758,7.62315111,144.3,144.27,4.03560981]
[1768461344759,0.13572592,144.29,144.27,4.03560981]
[1768461351351,0.13572592,144.29,144.26,4.70993334]
[1768461355259,6.93006951,144.3,144.26,4.70993334]
[1768461355260,7.73786612,144.31,144.27,0.72465866]
[1768461355781,0.12081058,144.3,144.27,0.72465866]
[1768461366390,0.12081058,144.3,144.26,0.72465866]
[1768461366594,7.05087795,144.3,144.26,0.72465866]
[1768461367794,0.70229836,144.29,144.25,0.72465866]
[1768461368291,0.70229836,144.29,144.25,3.3042763]
[1768461370398,0.70229836,144.29,144.26,0.72465866]
[1768461373078,0.70229836,144.29,144.26,3.3042763]
[1768461381312,0.70229836,144.29,144.26,0.72465866]
[1768461396123,2.7062431,144.28,144.23,0.70131731]
[1768461396311,0.69654163,144.27,144.22,0.70131731]
[1768461396696,0.1,144.31,144.27,0.70131731]
[1768461396900,0.1,144.31,144.27,2.57961764]
[1768461396901,7.170601,144.31,144.27,2.57961764]
[1768461397112,0.71205742,144.3,144.27,2.57961764]
[1768461397810,0.71205742,144.3,144.25,6.93208867]
[1768461397811,0.81782615,144.31,144.28,2.57961764]
[1768461398614,0.1,144.31,144.28,2.57961764]
[1768461398922,0.1,144.31,144.29,0.70131731]
[1768461400222,0.24095295,144.31,144.28,3.28093495]
[1768461402023,0.18095296,144.31,144.28,3.28093495]
[1768461404115,0.18095296,144.31,144.28,0.70131731]
[1768461404299,0.18095296,144.31,144.28,3.28093495]
[1768461404504,0.75782616,144.31,144.27,0.70131731]
[1768461404811,0.75782616,144.31,144.28,0.70131731]
[1768461405424,0.75782616,144.31,144.28,3.28093495]
[1768461407028,0.75782616,144.31,144.28,0.70131731]
[1768461407223,0.71782615,144.32,144.29,3.28093495]
[1768461407423,0.71782615,144.32,144.3,0.70131731]
[1768461407621,13.35782615,144.33,144.3,0.70131731]
[1768461408609,0.14095295,144.32,144.29,0.70131731]
[1768461409331,13.35782615,144.33,144.29,0.70131731]
[1768461410627,0.14095295,144.32,144.28,0.66529468]
[1768461411124,7.07004625,144.32,144.28,0.66529468]
[1768461411341,0.14095295,144.32,144.28,0.66529468]
[1768461411538,0.14095295,144.32,144.28,3.24491232]
[1768461412228,0.14095295,144.32,144.29,0.66529468]
[1768461417932,0.66478917,144.31,144.28,0.66529468]
[1768461418444,0.66478917,144.31,144.28,4.69478894]
[1768461418621,0.66478917,144.32,144.29,0.66529468]
[1768461419248,0.66478917,144.32,144.3,0.66529468]
[1768461419427,13.30478917,144.33,144.3,0.66529468]
[1768461422452,0.76478917,144.37,144.33,0.66529468]
[1768461422751,0.76478917,144.37,144.34,4.69478894]
[1768461422934,0.1,144.37,144.35,0.66529468]
[1768461423332,0.29345956,144.37,144.34,4.69478894]
[1768461424148,0.29345956,144.37,144.34,0.66529468]
[1768461426564,0.1,144.37,144.35,0.66529468]
[1768461429464,0.1,144.37,144.34,4.02949426]
[1768461429465,0.1,144.39,144.37,0.66529468]
[1768461429668,0.1,144.39,144.38,0.66529468]
[1768461430351,0.1,144.4,144.39,0.66529468]
[1768461430553,0.66478917,144.43,144.4,0.66529468]
[1768461431253,0.66478917,144.43,144.39,4.02949426]
[1768461431254,0.49045956,144.42,144.38,17.31478894]
[1768461431859,0.49045956,144.42,144.39,0.66529468]
[1768461435079,11.61805437,144.43,144.39,0.66529468]
[1768461435264,0.1,144.44,144.42,0.66529468]
[1768461436177,0.76304587,144.44,144.41,0.66529468]
[1768461436756,0.49218543,144.43,144.4,0.66529468]
[1768461437359,0.1,144.44,144.41,0.66529468]
[1768461437576,0.1,144.44,144.42,13.28529468]
[1768461437762,0.1,144.44,144.43,0.66529468]
[1768461438175,0.59218543,144.44,144.42,12.62]
[1768461438376,4.62167969,144.44,144.42,12.62]
[1768461438567,0.49387695,144.42,144.4,12.62]
[1768461438766,4.52337121,144.42,144.4,12.62]
[1768461439081,0.65966266,144.41,144.38,0.66529468]
[1768461439268,4.69428343,144.42,144.38,0.66529468]
[1768461440070,4.69428343,144.41,144.38,0.66529468]
[1768461441376,0.66478917,144.41,144.38,0.66529468]
[1768461441569,4.69428343,144.41,144.38,0.66529468]
[1768461445166,0.66478917,144.41,144.38,0.66529468]
[1768461446388,4.69428343,144.41,144.38,0.66529468]
[1768461447192,0.66478917,144.41,144.38,0.66529468]
[1768461450085,0.72198925,144.42,144.38,0.66529468]
[1768461451578,11.67541595,144.43,144.38,0.66529468]
[1768461451772,0.43383148,144.42,144.38,0.66529468]
[1768461452296,0.43383148,144.42,144.38,4.69478894]
[1768461453092,6.92393244,144.43,144.39,0.71631985]
[1768461453093,0.72198925,144.43,144.39,0.71631985]
[1768461453272,11.0528428,144.44,144.4,0.71631985]
[1768461453273,7.74533779,144.44,144.4,0.71631985]
[1768461453474,0.82198925,144.44,144.4,0.71631985]
[1768461453904,0.82198925,144.44,144.4,4.74581411]
[1768461454690,0.82198925,144.44,144.41,0.71631985]
[1768461456379,0.1,144.44,144.42,0.71631985]
[1768461456791,0.1,144.44,144.43,0.71631985]
[1768461463592,0.1,144.45,144.43,4.74581411]
[1768461466616,0.1,144.45,144.44,4.02949426]
[1768461466911,0.82198925,144.46,144.44,4.02949426]
[1768461467719,0.82198925,144.46,144.43,4.74581411]
[1768461469318,0.82198925,144.46,144.43,17.36581411]
[1768461469722,0.82198925,144.46,144.44,4.02949426]
[1768461470215,0.82198925,144.46,144.43,17.36581411]
[1768461470419,0.1,144.46,144.44,0.71631985]
[1768461470714,0.1,144.46,144.44,4.74581411]
[1768461471111,0.1,144.46,144.45,4.7396605]
[1768461471414,6.92108474,144.49,144.45,4.7396605]
[1768461471415,0.70033449,144.48,144.45,4.7396605]
[1768461471807,0.70033449,144.48,144.45,4.02949426]
[1768461472009,0.55526969,144.52,144.48,0.71016624]
[1768461472194,0.55526969,144.52,144.48,4.7396605]
[1768461472801,0.45769583,144.5,144.48,4.02949426]
[1768461473813,0.45769583,144.5,144.47,4.02949426]
[1768461474204,0.70033449,144.51,144.48,4.02949426]
[1768461476297,0.70033449,144.51,144.48,4.7396605]
[1768461476712,0.70033449,144.51,144.48,0.71016624]
[1768461477359,0.45526969,144.5,144.44,0.71016624]
[1768461477624,0.69788384,144.49,144.45,0.71016624]
[1768461478502,0.45769583,144.48,144.45,0.71016624]
[1768461479237,0.45769583,144.48,144.44,16.64949426]
[1768461479410,0.45769583,144.48,144.44,15.90329239]
[1768461479611,0.45769583,144.48,144.44,13.33016624]
[1768461479808,0.4600737,144.46,144.44,12.62]
[1768461481428,0.4600737,144.46,144.42,0.71016624]
[1768461482927,0.4600737,144.46,144.43,0.71016624]
[1768461483437,0.69312787,144.45,144.41,13.33016624]
[1768461483637,0.69312787,144.45,144.43,2.57312615]
[1768461484037,0.69312787,144.45,144.42,0.71016624]
[1768461484242,0.69312787,144.45,144.43,2.57312615]
[1768461485535,0.69312787,144.45,144.42,0.71016624]
[1768461485734,0.46240425,144.44,144.42,2.57312615]
[1768461486239,19.87724784,144.48,144.41,13.33016624]
[1768461486240,7.62234279,144.47,144.44,0.71016624]
[1768461486438,7.62234279,144.47,144.44,3.28329239]
[1768461486640,0.70033449,144.48,144.46,2.57312615]
[1768461487019,0.70033449,144.48,144.47,2.57312615]
[1768461488237,7.62158928,144.49,144.45,0.71016624]
[1768461488545,7.62158928,144.49,144.47,2.57312615]
[1768461488916,0.55526969,144.52,144.49,0.71016624]
[1768461489130,7.47487802,144.52,144.5,2.57312615]
[1768461489340,7.47487802,144.52,144.49,3.28329239]
[1768461489644,7.47487802,144.52,144.49,2.57312615]
[1768461490029,0.69788384,144.51,144.48,2.57312615]
[1768461491243,0.69788384,144.51,144.47,3.28329239]
[1768461491450,0.69788384,144.51,144.48,2.57312615]
[1768461491639,0.69788384,144.51,144.49,2.57312615]
[1768461491816,0.45526969,144.51,144.49,2.57312615]
[1768461493150,0.45526969,144.51,144.48,0.71016624]
[1768461493447,7.01960833,144.52,144.49,2.57312615]
[1768461493448,7.71994282,144.52,144.49,2.57312615]
[1768461493643,0.45526969,144.51,144.49,2.57312615]
[1768461493829,0.45526969,144.51,144.48,0.71016624]
[1768461494222,0.45526969,144.51,144.49,2.57312615]
[1768461494642,7.3753232,144.51,144.49,2.57312615]
[1768461495549,7.3753232,144.51,144.48,3.28329239]
[1768461495726,0.69788384,144.5,144.48,2.57312615]
[1768461496541,0.69788384,144.5,144.46,13.33016624]
[1768461496749,6.92089417,144.49,144.46,15.90329239]
[1768461497338,7.37859,144.49,144.46,15.90329239]
[1768461497846,7.37859,144.49,144.47,2.57312615]
[1768461498821,7.37859,144.49,144.46,15.90329239]
[1768461499130,0.69548196,144.48,144.43,0.71016624]
[1768461499324,0.69548196,144.48,144.44,2.57312615]
[1768461499735,0.69548196,144.48,144.44,3.28329239]
[1768461500047,0.69548196,144.48,144.45,2.57312615]
[1768461500747,0.69548196,144.48,144.45,3.28207925]
[1768461501050,6.92089417,144.49,144.47,2.57312615]
[1768461501349,6.92089417,144.49,144.46,0.7089531]
[1768461501553,6.92089417,144.49,144.47,2.57312615]
[1768461503243,0.67530159,144.51,144.48,3.27901301]
[1768461504649,0.1,144.52,144.5,3.27901301]
[1768461505437,7.01964579,144.52,144.5,3.27901301]
[1768461505746,7.49969805,144.52,144.47,0.70588686]
[1768461506054,7.49969805,144.52,144.48,3.27901301]
[1768461506437,7.49969805,144.52,144.49,2.57312615]
[1768461506934,0.6733491,144.51,144.49,2.57312615]
[1768461507132,0.6733491,144.51,144.47,3.27901301]
[1768461507365,0.6733491,144.51,144.47,2.57312615]
[1768461507842,0.6733491,144.51,144.47,3.27901301]
[1768461509058,6.92041522,144.5,144.47,3.27901301]
[1768461510755,7.40240045,144.5,144.47,3.27901301]
[1768461511658,7.40240045,144.5,144.47,2.57312615]
[1768461511840,7.40240045,144.5,144.46,15.89901301]
[1768461513664,7.40240045,144.5,144.46,13.32588686]
[1768461513956,0.67143546,144.49,144.46,13.32588686]
[1768461514469,0.67143546,144.49,144.46,15.89901301]
[1768461514961,0.67143546,144.49,144.46,13.32588686]
[1768461515164,0.67143546,144.49,144.46,15.89901301]
[1768461515555,7.59242101,144.49,144.46,15.89901301]
[1768461516260,7.59242101,144.49,144.46,13.32588686]
[1768461517162,7.59242101,144.49,144.46,0.70588686]
[1768461517832,0.48387973,144.48,144.43,12.62]
[1768461518247,0.48387973,144.48,144.43,15.89901301]
[1768461519956,24.22322099,144.49,144.43,15.89901301]
[1768461519957,7.59141218,144.47,144.43,15.89901301]
[1768461520340,7.59141218,144.47,144.44,0.70588686]
[1768461522561,6.92185228,144.47,144.45,0.70588686]
[1768461522857,6.92146607,144.48,144.45,0.70588686]
[1768461523065,0.67530159,144.5,144.47,0.70588686]
[1768461523460,7.59584783,144.5,144.47,0.70588686]
[1768461524165,0.77530159,144.52,144.49,0.70588686]
[1768461524560,7.69487323,144.52,144.49,0.70588686]
[1768461525264,0.48005226,144.51,144.47,0.70588686]
[1768461527766,7.59376432,144.5,144.47,0.70588686]
[1768461529674,7.59376432,144.5,144.47,3.27901301]
[1768461529848,7.59376432,144.5,144.47,0.70588686]
[1768461532358,0.48198523,144.49,144.46,15.86767545]
[1768461532665,0.48198523,144.49,144.45,0.6745493]
[1768461533071,0.48198523,144.49,144.44,0.6745493]
[1768461533449,0.48198523,144.49,144.44,3.24767545]
[1768461534452,7.59280866,144.48,144.44,0.6745493]
[1768461534687,7.59280866,144.48,144.44,3.24767545]
[1768461537273,7.59280866,144.48,144.44,0.6745493]
[1768461537577,0.48387973,144.47,144.44,0.6745493]
[1768461537946,0.48387973,144.47,144.44,3.24767545]
[1768461539171,7.40606731,144.47,144.44,3.24767545]
[1768461540387,7.40606731,144.47,144.44,0.6745493]
[1768461540590,0.6695599,144.46,144.43,12.62]
[1768461540886,0.48573654,144.45,144.41,0.6745493]
[1768461541051,0.48573654,144.45,144.41,3.24767545]
[1768461541556,0.48573654,144.45,144.41,4.69645745]
[1768461541757,0.48573654,144.45,144.41,0.6745493]
[1768461542854,7.5910116,144.44,144.41,0.6745493]
[1768461545179,7.41147606,144.43,144.4,0.6745493]
[1768461545758,6.92391967,144.43,144.4,0.6745493]
[1768461545980,6.87469094,144.43,144.41,0.6745493]
[1768461550567,7.31374023,144.43,144.4,0.6745493]
[1768461564594,21.3297761,144.45,144.4,0.6745493]
[1768461564595,6.92328994,144.44,144.4,0.6745493]
[1768461564798,6.92328994,144.44,144.41,0.70577163]
[1768461564987,6.92301104,144.45,144.41,0.70577163]
[1768461565388,7.41240666,144.45,144.41,0.70577163]
[1768461566703,7.58742974,144.44,144.41,0.70577163]
[1768461568891,0.49114266,144.43,144.39,0.70577163]
[1768461570198,0.44113721,144.43,144.4,0.70577163]
[1768461571216,6.92424871,144.42,144.4,0.70577163]
[1768461574388,0.6623696,144.42,144.39,0.70577163]
[1768461575103,4.68427775,144.42,144.38,13.32577163]
[1768461575297,0.44334954,144.41,144.38,13.32577163]
[1768461575494,0.6601794,144.4,144.38,12.62]
[1768461575810,0.44551783,144.39,144.36,0.70577163]
[1768461576194,0.66586385,144.4,144.37,0.70577163]
[1768461576899,6.92424871,144.42,144.38,0.70577163]
[1768461577213,6.92424871,144.42,144.39,0.70577163]
[1768461579129,0.43989023,144.42,144.39,0.70577163]
[1768461580319,7.3642981,144.42,144.39,0.70577163]
[1768461584095,11.38620625,144.42,144.39,0.70577163]
[1768461585811,7.3642981,144.42,144.39,0.70577163]
[1768461589339,0.66586385,144.41,144.37,4.02190815]
[1768461589539,0.66586385,144.41,144.38,0.70577163]
[1768461589540,0.60586386,144.41,144.38,0.70577163]
[1768461591227,6.92520775,144.4,144.38,0.70577163]
[1768461593547,7.58386783,144.4,144.38,0.70577163]
[1768461593736,7.58386783,144.4,144.36,4.02190815]
[1768461593948,7.58386783,144.4,144.35,74.12]
[1768461594239,7.58386783,144.4,144.36,4.02190815]
[1768461595746,7.58386783,144.4,144.37,0.53825931]
[1768461596644,7.58446942,144.39,144.35,17.18016746]
[1768461596851,7.58446942,144.39,144.36,4.56016746]
[1768461597149,7.52446943,144.39,144.36,4.56016746]
[1768461597354,0.59866009,144.39,144.36,4.56016746]
[1768461597553,6.92539184,144.4,144.37,0.5982593]
[1768461599150,0.65866008,144.4,144.37,0.5982593]
[1768461600150,0.65866008,144.4,144.37,4.62016745]
[1768461600854,0.65866008,144.4,144.37,0.5982593]
[1768461601349,7.58394623,144.4,144.37,4.62016745]
[1768461601534,0.65866008,144.39,144.36,0.5982593]
[1768461601735,0.65866008,144.39,144.36,4.62016745]
[1768461602253,7.58394623,144.4,144.37,0.5982593]
[1768461603837,0.65866008,144.39,144.35,15.79440295]
[1768461604151,0.65866008,144.38,144.35,12.62]
[1768461604348,0.65866008,144.38,144.35,13.2182593]
[1768461604655,0.65866008,144.38,144.35,12.62]
[1768461605153,0.65866008,144.39,144.36,0.5982593]
[1768461605452,0.65866008,144.41,144.38,0.5982593]
[1768461605656,0.65866008,144.41,144.37,3.17440295]
[1768461606659,0.65866008,144.41,144.37,2.57614365]
[1768461607863,7.58386783,144.4,144.37,2.57614365]
[1768461608259,7.58386783,144.4,144.36,0.5982593]
[1768461608445,7.58386783,144.4,144.37,2.57614365]
[1768461608761,7.58386783,144.4,144.36,0.5982593]
[1768461608940,7.58386783,144.4,144.37,2.57614365]
[1768461609364,7.58386783,144.4,144.37,3.17440295]
[1768461611364,0.65866008,144.39,144.37,2.57614365]
[1768461615368,7.58386783,144.4,144.37,3.17440295]
[1768461615867,0.65866008,144.39,144.37,2.57614365]
[1768461616856,0.65866008,144.38,144.36,2.57614365]
[1768461618072,0.65866008,144.38,144.35,13.2182593]
[1768461618252,0.65866008,144.38,144.36,2.57614365]
[1768461618446,0.65866008,144.38,144.35,15.19614365]
[1768461618652,0.65866008,144.37,144.35,12.62]
[1768461618853,0.65866008,144.37,144.35,15.19614365]
[1768461619374,7.5848797,144.38,144.36,2.57614365]
[1768461621174,0.71596004,144.37,144.36,2.57614365]
[1768461621553,24.2371845,144.41,144.36,2.57614365]
[1768461623570,0.70804671,144.38,144.36,2.57614365]
[1768461623879,7.63292467,144.41,144.38,0.70987631]
[1768461624177,0.70804671,144.41,144.39,2.57614365]
[1768461624585,6.9244519,144.42,144.4,2.57614365]
[1768461624752,6.9244519,144.42,144.38,0.70987631]
[1768461624954,6.9244519,144.42,144.39,2.57614365]
[1768461626566,0.70804671,144.42,144.39,2.57614365]
[1768461628285,7.19171856,144.41,144.38,3.28601996]
[1768461630485,15.19614365,144.44,144.35,12.62]
[1768461630486,6.92328994,144.44,144.4,3.28601996]
[1768461630660,5.44545701,144.43,144.4,3.28601996]
[1768461630973,0.26699036,144.43,144.4,0.70987631]
[1768461631754,6.92424871,144.42,144.4,0.70987631]
[1768461632487,6.92328994,144.44,144.42,0.70987631]
[1768461632698,6.92328994,144.44,144.42,3.28601996]
[1768461633190,0.70804671,144.48,144.44,0.70987631]
[1768461633388,7.18850263,144.48,144.45,2.57614365]
[1768461633961,7.18850263,144.48,144.44,0.70987631]
[1768461633962,7.18850263,144.48,144.44,3.28601996]
[1768461637871,0.70363615,144.47,144.44,3.28601996]
[1768461638884,0.70363615,144.47,144.44,0.70987631]
[1768461639079,0.70363615,144.47,144.44,3.28601996]
[1768461640288,7.62554534,144.47,144.44,3.28601996]
[1768461640685,7.62554534,144.47,144.44,0.70987631]
[1768461640874,7.62554534,144.47,144.44,3.28601996]
[1768461641789,6.92154923,144.48,144.45,2.57614365]
[1768461641989,6.92154923,144.48,144.46,0.70987631]
[1768461642582,0.26699036,144.49,144.46,3.28601996]
[1768461643486,7.18805633,144.49,144.46,3.28601996]
[1768461645574,6.92106597,144.49,144.47,0.70987631]
[1768461646090,6.92106597,144.49,144.46,3.28601996]
[1768461646474,0.1,144.52,144.48,2.57614365]
[1768461646691,0.1,144.52,144.49,0.70987631]
[1768461646989,0.1,144.52,144.49,0.67987631]
[1768461647485,7.31629515,144.52,144.49,0.67987631]
[1768461648496,7.31629515,144.52,144.47,2.57614365]
[1768461648694,7.31629515,144.52,144.48,2.57614365]
[1768461648899,7.31629515,144.52,144.44,17.30752193]
[1768461648900,7.01960479,144.52,144.5,0.70987631]
[1768461649103,7.01960479,144.52,144.5,0.67987631]
[1768461650373,7.01960479,144.52,144.5,0.64987631]
[1768461652394,7.37569515,144.52,144.49,0.6599238]
[1768461653398,7.01960479,144.52,144.49,0.6599238]
[1768461653798,0.1,144.52,144.49,0.6599238]
[1768461653996,0.1,144.52,144.5,0.6599238]
[1768461654199,0.1,144.52,144.51,3.23606745]
[1768461654378,23.9488902,144.54,144.51,3.20606745]
[1768461654581,23.26658814,144.54,144.51,2.57614365]
[1768461654777,16.3480522,144.54,144.52,2.57614365]
[1768461656193,16.3480522,144.54,144.49,6.92088534]
[1768461656408,23.26656919,144.54,144.52,0.6599238]
[1768461656709,16.3480522,144.54,144.52,0.6299238]
[1768461657711,16.3480522,144.54,144.52,3.20606745]
[1768461657889,16.3480522,144.54,144.52,0.6299238]
[1768461659292,16.3480522,144.54,144.52,3.20606745]
[1768461659499,16.3480522,144.54,144.52,0.6299238]
[1768461660614,0.44336668,144.53,144.49,0.6599238]
[1768461660913,0.44336668,144.53,144.5,0.6599238]
[1768461662214,0.67752359,144.52,144.49,3.23606745]
[1768461662398,0.67752359,144.52,144.49,0.6599238]
[1768461662601,0.67752359,144.52,144.49,3.23606745]
[1768461663392,0.67752359,144.52,144.49,4.67818996]
[1768461663590,0.67752359,144.52,144.49,0.6599238]
[1768461664814,0.67752359,144.52,144.48,16.63826616]
[1768461664815,0.44570825,144.51,144.48,12.62]
[1768461665039,0.44570825,144.51,144.48,13.2799238]
[1768461665926,0.44570825,144.51,144.48,0.6599238]
[1768461667833,7.36576553,144.51,144.48,0.6599238]
[1768461674938,0.67520544,144.5,144.47,0.6599238]
[1768461675846,0.44800322,144.49,144.46,0.6599238]
[1768461676642,11.62119387,144.5,144.46,0.6599238]
[1768461679844,7.60292771,144.5,144.46,0.6599238]
[1768461680524,6.92062565,144.5,144.46,0.6599238]
[1768461680732,4.70056822,144.51,144.46,0.6599238]
[1768461680733,10.93838055,144.51,144.47,0.67013838]
[1768461680942,11.33814282,144.51,144.47,0.67013838]
[1768461681126,4.68474569,144.5,144.46,0.72454536]
[1768461682037,6.92089417,144.49,144.46,0.72454536]
[1768461683054,7.37753604,144.49,144.46,0.72454536]
[1768461686356,6.92060614,144.5,144.47,0.72454536]
[1768461687443,6.92008489,144.51,144.47,4.01826616]
[1768461687633,6.92008489,144.51,144.48,0.72454536]
[1768461688658,7.58609511,144.52,144.48,0.72454536]
[1768461689659,6.91961558,144.52,144.48,0.72454536]
[1768461689853,6.91961558,144.52,144.49,0.72454536]
[1768461690356,7.37625745,144.52,144.49,0.72454536]
[1768461690559,10.93743037,144.53,144.49,0.72454536]
[1768461690737,11.6039099,144.53,144.49,0.72454536]
[1768461691456,7.58564374,144.53,144.49,0.72454536]
[1768461691757,11.6039099,144.53,144.49,0.72454536]
[1768461696770,0.66438115,144.51,144.48,0.72454536]
[1768461702877,6.91979089,144.52,144.48,0.72454536]
[1768461703077,6.91979089,144.52,144.49,0.72454536]
[1768461703380,7.37643276,144.52,144.49,0.72454536]
[1768461703678,6.91909383,144.53,144.5,0.72454536]
[1768461704048,7.3757357,144.53,144.5,0.72454536]
[1768461704378,0.66438115,144.52,144.5,0.72454536]
[1768461704778,0.66438115,144.52,144.48,4.74281152]
[1768461704958,0.66438115,144.52,144.49,0.72454536]
[1768461711477,0.66987329,144.53,144.49,0.72454536]
[1768461713288,0.45328205,144.52,144.49,4.74281152]
[1768461714389,0.45328205,144.52,144.49,0.72454536]
[1768461718489,7.37274224,144.52,144.49,0.72454536]
[1768461718880,0.45328205,144.52,144.49,0.72454536]
[1768461727499,0.66987329,144.53,144.5,0.66044013]
[1768461728000,0.66987329,144.53,144.48,7.58171606]
[1768461728177,0.66987329,144.53,144.49,3.23219174]
[1768461729094,0.66987329,144.53,144.5,0.66044013]
[1768461729300,23.26669681,144.54,144.51,0.66044013]
[1768461729301,17.01792549,144.54,144.51,0.66044013]
[1768461729596,17.01792549,144.54,144.51,3.23219174]
[1768461729808,17.01792549,144.54,144.51,0.66044013]
[1768461729969,23.93648038,144.54,144.51,3.23219174]
[1768461730585,16.3480522,144.54,144.52,0.66044013]